bitfinex/quotes_SOLUSD_20250330
["timestamp","ask_amount","ask_price","bid_price","bid_amount"]
[1743359420041,26.18998978,125.87,125.84,0.063]
[1743359420346,19.74458978,125.86,125.84,0.063]
[1743359422938,19.74458978,125.85,125.84,0.063]
[1743359424134,27.69048978,125.85,125.84,0.063]
[1743359424539,19.74458978,125.85,125.84,0.063]
[1743359424745,27.69048978,125.85,125.84,0.063]
[1743359431552,19.74458978,125.85,125.84,0.063]
[1743359432055,27.69048978,125.85,125.84,0.063]
[1743359433359,19.74458978,125.85,125.84,0.063]
[1743359433677,303.93873786,125.87,125.84,0.063]
[1743359433859,7.22,125.85,125.84,0.063]
[1743359435159,222.83873786,125.87,125.84,0.063]
[1743359435351,7.22,125.86,125.84,0.063]
[1743359438357,12.63873786,125.85,125.84,0.063]
[1743359438844,31.28838672,125.85,125.84,0.063]
[1743359439545,39.05598672,125.85,125.84,0.063]
[1743359439863,47.00188672,125.85,125.84,0.063]
[1743359449247,39.23488672,125.84,125.83,0.063]
[1743359450568,39.23488672,125.84,125.78,0.063]
[1743359450569,190.75623816,125.84,125.78,0.063]
[1743359450750,31.28838672,125.79,125.78,0.063]
[1743359450949,38.50838672,125.79,125.78,0.063]
[1743359452274,38.50838672,125.79,125.73,17.91893923]
[1743359452571,12.63873786,125.77,125.73,6.0573536]
[1743359453068,12.63873786,125.76,125.71,9.579]
[1743359453256,7.22,125.75,125.71,9.579]
[1743359454071,7.22,125.75,125.71,13.53317067]
[1743359454275,7.22,125.75,125.71,9.579]
[1743359455265,19.85873786,125.75,125.71,1.6244]
[1743359455651,19.85873786,125.75,125.71,9.5791]
[1743359456078,19.85873786,125.75,125.73,0.063]
[1743359458370,7.22,125.75,125.73,0.063]
[1743359458580,19.85873786,125.75,125.73,0.063]
[1743359458749,12.63873786,125.74,125.73,0.063]
[1743359459576,19.85873786,125.75,125.73,0.063]
[1743359460572,27.81103786,125.75,125.73,0.063]
[1743359460750,12.63873786,125.74,125.73,0.063]
[1743359460945,31.28838672,125.74,125.73,0.063]
[1743359463158,7.22,125.75,125.73,0.063]
[1743359463957,19.85873786,125.75,125.73,0.063]
[1743359464456,12.63873786,125.74,125.73,0.063]
[1743359464660,39.24128672,125.74,125.73,0.063]
[1743359467382,31.28838672,125.74,125.73,0.063]
[1743359467562,39.24128672,125.74,125.73,0.063]
[1743359467758,31.28838672,125.74,125.73,0.063]
[1743359468859,39.24128672,125.74,125.73,0.063]
[1743359470385,31.28838672,125.74,125.73,0.063]
[1743359471487,39.24128672,125.74,125.73,0.063]
[1743359474885,20.0,125.72,125.71,0.063]
[1743359475078,51.28838672,125.72,125.71,0.063]
[1743359477286,59.24248672,125.72,125.71,0.063]
[1743359478987,51.28838672,125.72,125.71,0.063]
[1743359479684,12.63873786,125.74,125.71,0.063]
[1743359479863,7.22,125.73,125.71,0.063]
[1743359480061,7.22,125.72,125.71,0.063]
[1743359483390,19.85873786,125.72,125.71,0.063]
[1743359483807,46.46248672,125.72,125.71,0.063]
[1743359485266,7.22,125.72,125.71,0.063]
[1743359486500,38.50838672,125.72,125.71,0.063]
[1743359487869,46.46248672,125.72,125.71,0.063]
[1743359488078,38.50838672,125.72,125.71,0.063]
[1743359490602,46.46248672,125.72,125.71,0.063]
[1743359491998,127.56248672,125.72,125.71,0.063]
[1743359492202,18.64964886,125.71,125.7,0.063]
[1743359492498,31.28838672,125.71,125.7,0.063]
[1743359493289,81.84333816,125.71,125.7,0.063]
[1743359494200,89.79813816,125.71,125.7,0.063]
[1743359495411,39.24318672,125.71,125.7,0.063]
[1743359498899,31.28838672,125.71,125.7,0.063]
[1743359499090,38.50838672,125.71,125.7,0.063]
[1743359499404,7.22,125.71,125.7,0.063]
[1743359500292,19.85873786,125.71,125.7,0.063]
[1743359500490,7.22,125.71,125.7,0.063]
[1743359506406,31.31838672,125.72,125.7,0.063]
[1743359506615,19.85873786,125.71,125.7,0.063]
[1743359507788,7.22,125.71,125.7,0.063]
[1743359509422,19.85873786,125.71,125.7,0.063]
[1743359514616,7.22,125.71,125.7,0.063]
[1743359514993,19.85873786,125.71,125.7,0.063]
[1743359515193,46.46318672,125.71,125.7,0.063]
[1743359515889,46.49318672,125.71,125.7,0.063]
[1743359518520,38.53838672,125.71,125.7,0.063]
[1743359520725,25.89964886,125.71,125.7,0.063]
[1743359521095,38.53838672,125.71,125.7,0.063]
[1743359522496,7.25,125.71,125.7,0.063]
[1743359524428,0.03,125.71,125.7,0.063]
[1743359524609,7.25,125.71,125.7,0.063]
[1743359525225,0.03,125.71,125.7,0.063]
[1743359526622,0.03,125.71,125.7,9.5481]
[1743359530214,0.03,125.75,125.71,18.64964886]
[1743359530412,0.0001,125.75,125.72,7.6739]
[1743359531706,0.0001,125.75,125.72,1.6569]
[1743359531909,12.63873786,125.74,125.7,8.0184]
[1743359532129,0.0001,125.75,125.7,0.063]
[1743359532130,19.85873786,125.73,125.7,0.063]
[1743359532822,12.63873786,125.71,125.7,0.063]
[1743359533508,31.28838672,125.71,125.7,0.063]
[1743359533705,12.63873786,125.71,125.7,0.063]
[1743359533929,31.28838672,125.72,125.7,0.063]
[1743359534707,12.63873786,125.71,125.7,0.063]
[1743359534908,223.09873786,125.71,125.7,0.063]
[1743359535717,230.26320205,125.71,125.7,0.063]
[1743359536238,330.01285091,125.71,125.7,0.063]
[1743359537337,357.77085296,125.71,125.7,0.063]
[1743359538638,330.01285091,125.71,125.7,0.063]
[1743359538820,337.96765091,125.71,125.7,0.063]
[1743359539337,363.83435296,125.71,125.7,0.063]
[1743359539543,282.73435296,125.71,125.7,0.063]
[1743359542440,262.93115091,125.71,125.7,0.063]
[1743359543846,256.86765091,125.71,125.7,0.063]
[1743359544027,256.13285091,125.71,125.7,0.063]
[1743359544227,229.10964886,125.71,125.7,0.063]
[1743359544533,256.13285091,125.71,125.7,0.063]
[1743359545442,264.08765091,125.71,125.7,0.063]
[1743359551663,283.89085296,125.71,125.7,0.063]
[1743359552266,18.64964886,125.67,125.66,0.063]
[1743359552431,45.67285091,125.67,125.66,0.063]
[1743359553263,53.63015091,125.67,125.66,0.063]
[1743359553942,25.86964886,125.67,125.66,0.063]
[1743359555262,45.67285091,125.67,125.66,0.063]
[1743359555562,53.63015091,125.67,125.66,0.063]
[1743359556271,45.67285091,125.67,125.66,0.063]
[1743359556559,25.86964886,125.67,125.66,0.063]
[1743359557661,19.80320205,125.68,125.66,0.063]
[1743359557865,7.22,125.67,125.66,0.063]
[1743359558063,210.58,125.69,125.66,0.063]
[1743359558364,7.22,125.67,125.66,0.063]
[1743359558664,7.22,125.67,125.66,1.5727]
[1743359559369,7.22,125.67,125.66,9.5306]
[1743359560744,210.58,125.69,125.66,9.5306]
[1743359560950,7.22,125.68,125.66,9.5306]
[1743359563060,210.58,125.69,125.66,29.4255]
[1743359563261,7.22,125.68,125.66,29.4255]
[1743359563568,0.0001,125.75,125.66,29.4255]
[1743359563569,7.22,125.71,125.66,29.4255]
[1743359563866,7.22,125.71,125.69,20.0]
[1743359564562,0.03,125.71,125.7,7.9087]
[1743359565368,0.03,125.71,125.7,15.8641]
[1743359570066,0.03,125.71,125.7,9.5305]
[1743359570567,0.03,125.71,125.7,7.9554]
[1743359571173,0.03,125.71,125.69,81.0]
[1743359571360,7.22,125.7,125.67,1.5751]
[1743359572164,7.22,125.7,125.66,8.0209]
[1743359572976,7.22,125.7,125.66,27.9158]
[1743359573970,0.03,125.71,125.66,27.9158]
[1743359573971,7.25,125.71,125.66,27.9158]
[1743359576371,7.25,125.71,125.66,8.0209]
[1743359577574,0.03,125.71,125.67,18.64964886]
[1743359578072,0.03,125.71,125.69,6.6259]
[1743359578264,0.03,125.71,125.7,7.9554]
[1743359582277,0.0001,125.75,125.73,20.0]
[1743359582479,7.2201,125.75,125.73,20.0]
[1743359582674,0.0001,125.75,125.74,7.9529]
[1743359584082,0.0001,125.75,125.74,12.02888421]
[1743359584289,0.0001,125.75,125.74,7.9529]
[1743359587588,0.0001,125.75,125.74,12.00550983]
[1743359589469,21.43900205,125.84,125.75,18.64964886]
[1743359589470,7.22,125.8,125.75,18.64964886]
[1743359589665,7.22,125.8,125.75,99.64964886]
[1743359589988,7.22,125.8,125.76,27.8307]
[1743359591315,27.02320205,125.8,125.76,7.9516]
[1743359591501,7.22,125.8,125.76,7.9516]
[1743359591993,7.22,125.8,125.76,27.8307]
[1743359593278,210.46,125.83,125.76,27.8307]
[1743359593476,7.22,125.8,125.76,27.8307]
[1743359600192,7.25,125.8,125.76,27.8307]
[1743359603881,7.25,125.8,125.76,7.9516]
[1743359604199,28.07840205,125.79,125.75,89.015]
[1743359604373,19.80320205,125.77,125.75,0.063]
[1743359604571,27.02320205,125.76,125.75,0.063]
[1743359604998,7.22,125.76,125.75,0.063]
[1743359623893,7.25,125.76,125.75,0.063]
[1743359625009,27.86096528,125.76,125.75,0.063]
[1743359625314,18.64964886,125.72,125.7,0.063]
[1743359625490,40.14191414,125.71,125.7,0.063]
[1743359627713,47.2842019,125.71,125.7,0.063]
[1743359628216,28.63455304,125.71,125.7,0.063]
[1743359628417,55.2390019,125.71,125.7,0.063]
[1743359632417,61.7550019,125.71,125.7,0.063]
[1743359633722,53.8002019,125.71,125.7,0.063]
[1743359634097,45.6513019,125.71,125.7,0.063]
[1743359634716,7.2,125.71,125.7,0.063]
[1743359634922,25.84964886,125.71,125.7,0.063]
[1743359637023,45.6513019,125.71,125.7,0.063]
[1743359638629,53.6061019,125.71,125.7,0.063]
[1743359641522,45.6513019,125.71,125.7,0.063]
[1743359643526,53.6061019,125.71,125.7,0.063]
[1743359649730,46.47715187,125.71,125.7,0.063]
[1743359653838,230.5,125.73,125.7,0.063]
[1743359654135,7.22,125.72,125.7,0.063]
[1743359655530,223.17270301,125.73,125.7,0.063]
[1743359655717,7.22,125.71,125.7,0.063]
[1743359656118,46.49715187,125.71,125.7,0.063]
[1743359656339,19.89270301,125.71,125.7,0.063]
[1743359656635,38.54235187,125.71,125.7,0.063]
[1743359657019,7.22,125.71,125.7,0.063]
[1743359675252,33.82444886,125.71,125.7,0.063]
[1743359675436,46.49715187,125.71,125.7,0.063]
[1743359676035,99.74964886,125.7,125.66,0.063]
[1743359676269,31.32235187,125.67,125.66,0.063]
[1743359676438,38.52235187,125.67,125.66,0.063]
[1743359676834,46.47965187,125.67,125.66,0.063]
[1743359677245,48.09925187,125.67,125.66,0.063]
[1743359681154,74.84655187,125.67,125.66,0.063]
[1743359681361,18.64964886,125.66,125.65,0.063]
[1743359681550,31.32235187,125.66,125.65,0.063]
[1743359684168,112.42235187,125.66,125.65,0.063]
[1743359684660,120.38025187,125.66,125.65,0.063]
[1743359689970,112.42235187,125.66,125.65,0.063]
[1743359691663,120.38025187,125.66,125.65,0.063]
[1743359692264,112.42235187,125.66,125.65,0.063]
[1743359692667,210.58,125.67,125.65,0.063]
[1743359692969,19.87270301,125.66,125.65,0.063]
[1743359693547,7.2,125.66,125.65,0.063]
[1743359694544,19.87270301,125.66,125.65,0.063]
[1743359694748,38.52235187,125.66,125.65,0.063]
[1743359694970,46.48025187,125.66,125.65,0.063]
[1743359696872,38.52235187,125.66,125.65,0.063]
[1743359702369,7.2,125.66,125.65,0.063]
[1743359704882,0.03,125.67,125.65,0.063]
[1743359705055,7.2,125.66,125.65,0.063]
[1743359707773,7.23,125.66,125.65,0.063]
[1743359709880,7.23,125.66,125.65,8.0216]
[1743359711581,0.03,125.66,125.65,8.0216]
[1743359711779,7.23,125.66,125.65,8.0216]
[1743359713079,7.23,125.66,125.65,0.063]
[1743359713894,0.03,125.66,125.65,0.063]
[1743359737607,0.03,125.66,125.65,20.063]
[1743359737811,0.03,125.67,125.66,1.581]
[1743359738012,0.03,125.67,125.66,7.7638]
[1743359738693,0.03,125.67,125.66,15.7217]
[1743359739715,1.5643,125.75,125.69,20.0]
[1743359740010,7.2,125.74,125.69,20.0]
[1743359740198,7.2,125.74,125.69,26.37853233]
[1743359740598,7.23,125.75,125.69,26.37853233]
[1743359740805,0.03,125.75,125.7,27.844]
[1743359740988,7.2,125.74,125.7,27.844]
[1743359744806,7.2,125.73,125.7,27.844]
[1743359746508,7.2,125.73,125.7,31.86322221]
[1743359753706,7.2,125.73,125.72,20.0]
[1743359753905,0.03,125.75,125.72,20.0]
[1743359754601,0.03,125.73,125.72,20.0]
[1743359756447,0.03,125.73,125.72,27.9541]
[1743359761236,7.21,125.73,125.72,7.9541]
[1743359761407,7.21,125.73,125.7,7.9554]
[1743359761724,7.21,125.73,125.68,19.8915]
[1743359761725,12.67270301,125.72,125.68,7.9567]
[1743359762529,26.26430301,125.73,125.67,8.0203]
[1743359763129,13.5916,125.73,125.67,27.9136]
[1743359763924,13.5916,125.73,125.67,31.91599557]
[1743359764635,26.26430301,125.73,125.67,27.9136]
[1743359765014,34.21780301,125.73,125.67,27.9136]
[1743359765215,26.26430301,125.73,125.67,27.9136]
[1743359766735,13.5916,125.73,125.67,27.9136]
[1743359768839,26.26430301,125.73,125.67,27.9136]
[1743359770638,13.5916,125.73,125.67,27.9136]
[1743359770941,26.26430301,125.73,125.67,27.9136]
[1743359771135,34.21790301,125.73,125.67,27.9136]
[1743359773642,13.5916,125.73,125.67,27.9136]
[1743359773828,0.03,125.73,125.7,20.0]
[1743359774027,7.21,125.73,125.7,20.0]
[1743359775033,0.03,125.73,125.7,20.0]
[1743359775222,0.03,125.73,125.71,7.9548]
[1743359777236,0.03,125.73,125.7,27.8433]
[1743359780243,0.03,125.73,125.7,19.8879]
[1743359783628,0.03,125.73,125.72,20.0]
[1743359784837,0.03,125.73,125.72,27.9541]
[1743359791641,0.03,125.73,125.71,7.9548]
[1743359791851,7.18,125.72,125.69,7.956]
[1743359792074,19.85270301,125.72,125.68,7.9565]
[1743359792368,12.67270301,125.71,125.68,7.9565]
[1743359792938,19.85270301,125.72,125.68,7.9565]
[1743359793352,19.85270301,125.72,125.67,8.0203]
[1743359794783,0.03,125.73,125.7,20.0]
[1743359795066,0.03,125.75,125.7,20.0]
[1743359795371,0.03,125.75,125.71,7.9548]
[1743359795859,0.03,125.75,125.71,27.8418]
[1743359796767,0.0001,125.75,125.74,20.0]
[1743359797257,0.0001,125.75,125.74,27.9529]
[1743359806068,0.0001,125.75,125.74,7.9529]
[1743359806365,0.0001,125.75,125.73,7.9535]
[1743359808571,0.0001,125.75,125.73,20.0]
[1743359810744,0.0001,125.75,125.74,7.9529]
[1743359832277,0.0001,125.75,125.73,0.063]
[1743359832588,19.85270301,125.74,125.73,0.063]
[1743359832779,25.94630301,125.74,125.73,0.063]
[1743359833173,13.2736,125.74,125.73,0.063]
[1743359834387,7.18,125.74,125.73,0.063]
[1743359836290,7.18,125.74,125.73,20.063]
[1743359836699,0.0001,125.75,125.73,20.063]
[1743359837891,0.0001,125.75,125.73,0.063]
[1743359851089,39.98795858,125.74,125.73,0.063]
[1743359851290,18.64964886,125.73,125.67,0.063]
[1743359851484,19.77470972,125.7,125.67,8.0202]
[1743359851686,19.77470972,125.7,125.67,0.063]
[1743359852198,19.77470972,125.71,125.67,0.063]
[1743359853116,21.33830972,125.69,125.67,0.063]
[1743359853286,7.16,125.68,125.67,0.063]
[1743359854199,26.93470972,125.68,125.67,0.063]
[1743359856314,7.16,125.68,125.67,0.063]
[1743359865019,7.16,125.68,125.67,0.063]
[1743359867325,7.16,125.68,125.67,8.0203]
[1743359869424,7.16,125.68,125.67,0.063]
[1743359870924,12.67027653,125.71,125.67,0.063]
[1743359871104,7.18,125.68,125.67,0.063]
[1743359878636,6.306,125.73,125.68,20.0]
[1743359878637,0.03,125.73,125.68,20.0]
[1743359878937,7.16,125.72,125.68,20.0]
[1743359880343,0.03,125.73,125.68,101.0]
[1743359880540,0.03,125.73,125.69,1.6372]
[1743359880847,0.03,125.73,125.7,27.844]
[1743359885446,0.03,125.73,125.72,20.0]
[1743359886559,0.03,125.73,125.72,27.9541]
[1743359887037,0.0001,125.75,125.72,47.8395]
[1743359890852,0.0001,125.75,125.72,27.8395]
[1743359893054,0.0001,125.75,125.7,86.27084886]
[1743359896842,0.0001,125.75,125.7,27.844]
[1743359897042,0.0001,125.75,125.7,7.9554]
[1743359897043,27.52967653,125.74,125.7,7.9554]
[1743359897947,8.7901,125.74,125.7,7.9554]
[1743359898844,8.7901,125.74,125.68,0.063]
[1743359899641,7.16,125.74,125.7,20.0]
[1743359899845,7.16,125.74,125.7,101.0]
[1743359901554,7.16,125.74,125.71,27.8418]
[1743359902249,0.0001,125.75,125.71,27.8418]
[1743359904466,12.67037653,125.75,125.71,7.9548]
[1743359905564,0.0001,125.75,125.71,7.9548]
[1743359907056,0.0001,125.75,125.71,27.8418]
[1743359916366,0.0001,125.75,125.71,27.8418]
[1743359916545,21.31436853,125.75,125.71,7.9548]
[1743359920066,1.5357,125.75,125.71,7.9548]
[1743359920566,1.5357,125.75,125.71,27.8418]
[1743359920745,0.0001,125.75,125.71,27.8418]
[1743359928780,0.0001,125.75,125.71,7.9548]
[1743359928987,19.77876853,125.75,125.71,7.9548]
[1743359929156,19.77866853,125.74,125.71,7.9548]
[1743359929483,8.7511,125.73,125.71,0.063]
[1743359930866,19.77866853,125.72,125.71,0.063]
[1743359931673,31.32051195,125.72,125.71,0.063]
[1743359934480,39.27461195,125.72,125.71,0.063]
[1743359934978,31.32051195,125.72,125.71,0.063]
[1743359936076,38.48051195,125.72,125.71,0.063]
[1743359937958,46.43461195,125.72,125.71,0.063]
[1743359940264,39.27461195,125.72,125.71,0.063]
[1743359940465,46.43461195,125.72,125.71,0.063]
[1743359941282,38.48051195,125.72,125.71,0.063]
[1743359945082,7.16,125.72,125.71,0.063]
[1743359945291,324.73654886,125.74,125.71,0.063]
[1743359945292,210.46,125.74,125.71,0.063]
[1743359945465,7.16,125.73,125.71,0.063]
[1743359946781,210.46,125.74,125.71,0.063]
[1743359946987,217.62,125.74,125.71,0.063]
[1743359947183,210.46,125.74,125.71,0.063]
[1743359947375,217.62,125.74,125.71,0.063]
[1743359948487,210.46,125.74,125.71,0.063]
[1743359949383,217.62,125.74,125.71,0.063]
[1743359949886,0.0001,125.75,125.71,0.063]
[1743359951103,0.0001,125.75,125.72,20.0]
[1743359953697,0.0001,125.75,125.73,7.9535]
[1743359955803,0.0001,125.75,125.71,0.063]
[1743359961287,12.67096309,125.75,125.71,0.063]
[1743359961992,12.67086309,125.74,125.71,0.063]
[1743359962288,32.91311195,125.72,125.71,0.063]
[1743359962622,40.05311195,125.72,125.71,0.063]
[1743359963300,48.00721195,125.72,125.71,0.063]
[1743359965708,21.40346309,125.72,125.71,0.063]
[1743359967089,14.26346309,125.72,125.71,0.063]
[1743359967290,21.40346309,125.72,125.71,0.063]
[1743359971698,7.14,125.72,125.71,0.063]
[1743359972510,19.81086309,125.72,125.71,0.063]
[1743359974603,210.46,125.73,125.71,0.063]
[1743359974812,7.14,125.72,125.71,0.063]
[1743359975619,38.46051195,125.72,125.71,0.063]
[1743359975809,27.76496309,125.72,125.71,0.063]
[1743359976011,46.41461195,125.72,125.71,0.063]
[1743359976407,47.94111195,125.72,125.71,0.063]
[1743359976606,54.43911195,125.72,125.71,0.063]
[1743359979419,135.53911195,125.72,125.71,0.063]
[1743359980930,186.22256431,125.72,125.71,0.063]
[1743359981504,135.53911195,125.72,125.71,0.063]
[1743359981705,135.53911195,125.72,125.68,0.063]
[1743359981706,20.0,125.69,125.68,0.063]
[1743359982029,51.32051195,125.69,125.68,0.063]
[1743359983328,59.27651195,125.69,125.68,0.063]
[1743359983515,60.92621195,125.69,125.68,0.063]
[1743359985230,60.92621195,125.69,125.67,0.063]
[1743359985231,18.64964886,125.68,125.67,0.063]
[1743359985406,37.92941195,125.68,125.67,0.063]
[1743359986235,45.06941195,125.68,125.67,0.063]
[1743359986418,53.02611195,125.68,125.67,0.063]
[1743359986729,38.46051195,125.68,125.67,0.063]
[1743359989231,46.41721195,125.68,125.67,0.063]
[1743359989434,12.67086309,125.68,125.67,0.063]
[1743359989617,19.81086309,125.68,125.67,0.063]
[1743359990225,7.14,125.68,125.67,0.063]
[1743359990424,12.67086309,125.69,125.67,0.063]
[1743359990728,7.14,125.68,125.67,0.063]
[1743359997637,81.1,125.72,125.67,0.063]
[1743359997845,7.14,125.69,125.67,0.063]
[1743360000119,7.14,125.72,125.67,0.063]
[1743360000520,223.16086309,125.73,125.67,0.063]
[1743360000747,0.03,125.68,125.67,20.063]
[1743360001239,0.03,125.68,125.67,28.0203]
[1743360003137,0.03,125.68,125.67,34.5735]
[1743360003525,217.63,125.73,125.68,1.5699]
[1743360004334,217.63,125.73,125.69,27.8462]
[1743360005154,0.03,125.73,125.69,27.8462]
[1743360006549,0.03,125.73,125.72,20.0]
[1743360008538,0.03,125.73,125.72,27.9541]
[1743360011675,0.03,125.73,125.72,7.9541]
[1743360012350,0.03,125.73,125.72,27.9541]
[1743360012533,0.03,125.73,125.72,29.538]
[1743360012938,0.0001,125.75,125.74,20.0]
[1743360013154,0.0001,125.75,125.74,27.9529]
[1743360016370,0.0001,125.75,125.74,31.94158927]
[1743360016734,0.0001,125.75,125.74,7.9529]
[1743360017870,0.0001,125.75,125.74,31.97147157]
[1743360019774,0.03,125.79,125.77,20.0]
[1743360021070,0.03,125.79,125.78,7.9503]
[1743360022972,0.03,125.79,125.77,7.9508]
[1743360023277,0.03,125.79,125.75,7.9522]
[1743360027779,7.14,125.78,125.75,7.9522]
[1743360028245,26.9051794,125.78,125.73,7.9535]
[1743360028444,26.9051794,125.78,125.69,61.50108053]
[1743360028445,19.7651794,125.76,125.69,61.50108053]
[1743360028677,19.7651794,125.75,125.69,7.956]
[1743360028871,19.7651794,125.73,125.69,7.956]
[1743360029258,28.5365794,125.74,125.69,7.956]
[1743360030449,8.7714,125.74,125.67,27.9136]
[1743360030656,7.14,125.74,125.68,18.64964886]
[1743360031044,7.14,125.74,125.67,27.9136]
[1743360032766,26.9051794,125.74,125.67,27.9136]
[1743360033177,7.14,125.74,125.67,27.9136]
[1743360034880,34.8581794,125.74,125.67,27.9136]
[1743360035385,19.7651794,125.73,125.67,27.9136]
[1743360035554,19.7651794,125.73,125.67,8.0203]
[1743360037053,7.14,125.74,125.67,8.0203]
[1743360038287,7.14,125.74,125.67,27.9136]
[1743360043963,19.7651794,125.73,125.67,27.9136]
[1743360045663,12.66617504,125.73,125.67,27.9136]
[1743360047492,27.75907504,125.74,125.67,27.9136]
[1743360048869,19.80617504,125.74,125.67,27.9136]
[1743360051386,223.05617504,125.76,125.67,27.9136]
[1743360051567,7.14,125.74,125.7,20.0]
[1743360051882,223.05617504,125.76,125.7,20.0]
[1743360052081,7.14,125.75,125.7,20.0]
[1743360052875,7.14,125.75,125.71,7.9548]
[1743360058006,223.05617504,125.76,125.71,7.9548]
[1743360058187,7.14,125.75,125.71,7.9548]
[1743360058592,12.66617504,125.72,125.67,81.063]
[1743360058792,7.14,125.71,125.68,7.9567]
[1743360059320,7.14,125.71,125.67,8.02]
[1743360063113,12.66617504,125.7,125.67,0.063]
[1743360070228,12.66617504,125.69,125.67,0.063]
[1743360070518,12.66617504,125.68,125.67,0.063]
[1743360071752,31.3158239,125.69,125.67,0.063]
[1743360073413,12.66617504,125.68,125.67,0.063]
[1743360074004,31.3158239,125.68,125.67,0.063]
[1743360074204,32.8316239,125.68,125.67,0.063]
[1743360077295,31.3158239,125.69,125.67,0.063]
[1743360077508,81.1,125.7,125.67,0.063]
[1743360077818,12.66617504,125.68,125.67,0.063]
[1743360078800,31.3158239,125.69,125.67,0.063]
[1743360080918,12.66617504,125.69,125.67,0.063]
[1743360081307,7.14,125.69,125.67,0.063]
[1743360086123,18.64964886,125.71,125.67,0.063]
[1743360086306,7.14,125.71,125.67,0.063]
[1743360086505,210.48,125.73,125.67,18.71264886]
[1743360086812,217.62,125.73,125.7,20.0]
[1743360087013,217.62,125.73,125.71,7.9548]
[1743360087212,210.48,125.73,125.71,7.9548]
[1743360087721,7.14,125.74,125.71,27.8418]
[1743360088218,0.03,125.76,125.71,27.8418]
[1743360088404,0.03,125.76,125.71,29.4442]
[1743360088605,7.17,125.76,125.71,29.4442]
[1743360089011,0.03,125.76,125.71,29.4442]
[1743360089422,7.17,125.76,125.71,29.4442]
[1743360090808,7.17,125.76,125.71,7.9548]
[1743360091324,7.17,125.76,125.69,46.49584886]
[1743360091927,12.66617504,125.74,125.69,27.8462]
[1743360093717,19.78773618,125.74,125.69,7.956]
[1743360094237,19.78773618,125.75,125.69,7.956]
[1743360094729,45.60738504,125.76,125.69,27.8462]
[1743360094915,25.81964886,125.76,125.71,0.063]
[1743360096320,7.17,125.76,125.71,0.063]
[1743360096531,7.14,125.75,125.71,0.063]
[1743360097001,7.14,125.75,125.72,20.0]
[1743360098711,0.03,125.76,125.73,7.9535]
[1743360098907,7.17,125.76,125.73,7.9535]
[1743360102225,7.17,125.76,125.73,27.8373]
[1743360106937,7.17,125.76,125.73,7.9535]
[1743360107126,26.95773618,125.76,125.73,7.9535]
[1743360107321,19.78773618,125.74,125.71,0.063]
[1743360107526,19.78773618,125.73,125.71,0.063]
[1743360107736,7.12,125.72,125.71,8.0178]
[1743360108724,7.12,125.72,125.71,0.063]
[1743360113643,7.12,125.75,125.71,0.063]
[1743360117557,7.12,125.75,125.71,20.063]
[1743360117742,7.12,125.75,125.72,20.0]
[1743360117942,0.03,125.76,125.72,20.0]